bitfinex/quotes_ETHUSD_20241103
["timestamp","ask_amount","ask_price","bid_price","bid_amount"]
[1730673116189,4.99637884,2470.7,2470.6,0.78601225]
[1730673117588,4.99637884,2470.7,2470.6,0.5198858]
[1730673117892,4.99637884,2470.7,2470.6,0.78607544]
[1730673118292,4.99637884,2470.7,2470.6,0.5198858]
[1730673118510,4.99637884,2470.7,2470.6,0.78607561]
[1730673119309,4.99637884,2470.7,2470.6,0.5198858]
[1730673119725,8.97777924,2470.7,2470.6,0.5198858]
[1730673119871,9.40337988,2470.7,2470.6,0.5198858]
[1730673120210,7.27652922,2470.7,2470.6,0.05030556]
[1730673120511,3.64312,2470.5,2470.2,0.26637191]
[1730673120717,5.34486638,2470.5,2470.3,0.46980417]
[1730673120876,5.34486638,2470.5,2470.4,0.46980417]
[1730673122098,5.34486638,2470.5,2470.2,0.2662342]
[1730673122302,3.64312,2470.5,2470.3,0.46954315]
[1730673122507,5.34486638,2470.5,2470.4,0.46954315]
[1730673122712,3.64312,2470.5,2470.4,0.46954315]
[1730673123017,3.64312,2470.5,2470.4,0.46954804]
[1730673123184,5.11798886,2470.5,2470.4,0.16637633]
[1730673123386,5.11798886,2470.5,2470.4,0.46950043]
[1730673123613,5.11798886,2470.5,2470.4,0.3031241]
[1730673123895,5.11798886,2470.5,2470.4,0.46946805]
[1730673124099,5.11798886,2470.5,2470.4,0.16634411]
[1730673124630,5.11798886,2470.5,2470.2,0.26617608]
[1730673124796,3.64312,2470.5,2470.3,0.46927215]
[1730673125126,3.64312,2470.5,2470.1,1.05897608]
[1730673125456,3.64318,2470.4,2470.2,0.4692257]
[1730673125606,3.64318,2470.4,2470.3,0.4692257]
[1730673127222,3.64318,2470.4,2470.3,0.30296403]
[1730673127527,3.64318,2470.4,2470.3,0.46911101]
[1730673129317,3.64318,2470.4,2470.3,0.16622021]
[1730673129556,3.64318,2470.4,2470.3,0.4690843]
[1730673130009,3.64318,2470.4,2470.3,0.16622021]
[1730673130213,3.64318,2470.4,2470.1,0.7928]
[1730673130456,5.34460638,2470.6,2470.2,0.46904032]
[1730673130612,3.64306,2470.5,2470.3,0.46902115]
[1730673130818,3.64306,2470.5,2470.1,1.05877783]
[1730673131017,3.64306,2470.5,2470.2,0.46900911]
[1730673131218,3.64306,2470.5,2470.3,0.46900911]
[1730673131420,3.64286,2470.6,2470.3,0.05048405]
[1730673131738,3.64313,2470.4,2470.1,0.7928]
[1730673131944,3.64313,2470.4,2470.2,0.46895687]
[1730673132150,3.64313,2470.4,2470.1,0.7928]
[1730673132469,3.64313,2470.4,2470.2,0.46893985]
[1730673132648,3.64313,2470.4,2470.1,0.7928]
[1730673132828,3.64313,2470.4,2470.2,0.46897715]
[1730673133152,3.64313,2470.4,2470.3,0.46896085]
[1730673133361,3.64313,2470.4,2470.3,0.16616985]
[1730673133650,3.64313,2470.4,2470.3,0.16616957]
[1730673133840,3.64313,2470.4,2470.2,0.46897604]
[1730673134045,3.64313,2470.4,2470.3,0.16616957]
[1730673134560,3.64313,2470.4,2470.1,0.7928]
[1730673134769,3.64313,2470.4,2470.2,0.46895459]
[1730673135051,3.64313,2470.4,2470.3,0.16616086]
[1730673135220,3.64313,2470.4,2470.2,0.46889423]
[1730673135415,3.64313,2470.4,2470.1,0.7928]
[1730673135644,3.64313,2470.4,2470.2,0.46889255]
[1730673135855,3.64313,2470.4,2470.1,0.7928]
[1730673136057,3.64313,2470.4,2470.2,0.4688771]
[1730673136258,3.64313,2470.4,2470.1,0.7928]
[1730673136553,3.64313,2470.4,2470.2,0.46886423]
[1730673136756,3.64313,2470.4,2470.1,0.7928]
[1730673136966,3.64313,2470.4,2470.2,0.46886826]
[1730673137149,3.64313,2470.4,2470.1,0.7928]
[1730673137351,3.64313,2470.4,2470.2,0.46887018]
[1730673137553,3.64313,2470.4,2470.1,0.7928]
[1730673137866,3.64313,2470.4,2470.2,0.46886791]
[1730673138025,3.64313,2470.4,2470.1,0.7928]
[1730673138362,3.64313,2470.4,2470.2,0.46886691]
[1730673138564,3.64313,2470.4,2470.1,0.7928]
[1730673138870,3.64313,2470.4,2470.2,0.46888246]
[1730673139173,3.64313,2470.4,2470.1,0.7928]
[1730673139661,3.64313,2470.4,2470.2,0.46886714]
[1730673139870,3.64313,2470.4,2470.1,0.7928]
[1730673140168,3.64315,2470.4,2470.2,0.46886335]
[1730673140328,3.64315,2470.4,2470.1,0.7928]
[1730673140532,3.64315,2470.4,2470.2,0.46885874]
[1730673140725,3.64315,2470.4,2470.1,0.7928]
[1730673141066,3.64315,2470.4,2470.2,0.46892118]
[1730673141267,3.64315,2470.4,2470.2,0.30276802]
[1730673142028,3.64315,2470.4,2470.1,0.7928]
[1730673142331,3.64315,2470.4,2470.2,0.46890917]
[1730673142531,3.64315,2470.4,2470.2,0.30275502]
[1730673143363,3.64315,2470.4,2470.1,0.7928]
[1730673143559,3.64315,2470.4,2470.2,0.46887224]
[1730673143974,3.64315,2470.4,2470.2,0.46886411]
[1730673144265,3.64315,2470.4,2470.2,0.30272984]
[1730673145484,0.01,2470.5,2470.2,0.46887398]
[1730673145772,3.65312,2470.5,2470.2,0.46890087]
[1730673146376,3.65312,2470.5,2470.3,0.05049514]
[1730673147142,3.65312,2470.5,2470.2,0.46882543]
[1730673147346,0.01,2470.5,2470.4,0.05048361]
[1730673147567,0.01,2470.5,2470.3,0.05049514]
[1730673147568,4.55064618,2470.5,2470.3,0.05049514]
[1730673147748,4.55064618,2470.5,2470.4,0.05048361]
[1730673148138,4.55064618,2470.5,2470.2,0.46882188]
[1730673148453,4.55064618,2470.5,2470.4,0.05048361]
[1730673148966,4.55064618,2470.5,2470.1,0.7928]
[1730673149172,3.65309,2470.5,2470.4,0.05048361]
[1730673149469,3.65309,2470.5,2470.1,0.7928]
[1730673149679,3.65309,2470.5,2470.4,0.05048361]
[1730673150037,3.65309,2470.5,2470.2,0.4688477]
[1730673150374,3.65309,2470.5,2470.3,0.05049514]
[1730673150539,0.8276,2470.5,2470.3,0.05049514]
[1730673150731,3.64313,2470.4,2470.1,0.7928]
[1730673150936,3.64313,2470.4,2470.2,0.46889973]
[1730673151150,3.64313,2470.4,2470.1,0.7928]
[1730673151359,3.64313,2470.4,2470.2,0.468931]
[1730673151666,3.64313,2470.4,2470.1,0.7928]
[1730673151891,3.64313,2470.4,2470.2,0.46898139]
[1730673152054,3.64313,2470.4,2470.1,0.7928]
[1730673152253,3.64313,2470.4,2470.2,0.46898594]
[1730673152483,3.64313,2470.4,2470.1,0.7928]
[1730673152683,3.64313,2470.4,2470.2,0.46898802]
[1730673152992,3.64313,2470.4,2470.1,0.7928]
[1730673153293,3.64313,2470.4,2470.2,0.46898972]
[1730673153494,3.64313,2470.4,2470.1,0.7928]
[1730673153696,3.64313,2470.4,2470.2,0.46901605]
[1730673153896,3.64313,2470.4,2470.1,0.7928]
[1730673154049,3.64313,2470.4,2470.2,0.46901535]
[1730673154256,3.64313,2470.4,2470.1,0.7928]
[1730673154458,3.64313,2470.4,2470.2,0.46903598]
[1730673154777,0.8376,2470.5,2470.3,0.1661791]
[1730673154978,0.8376,2470.5,2470.1,1.05871661]
[1730673154979,4.48059,2470.5,2470.1,1.05871661]
[1730673155297,4.48059,2470.5,2470.2,0.46896557]
[1730673155595,4.48059,2470.5,2470.3,0.46896557]
[1730673155798,4.48059,2470.5,2470.1,1.05871661]
[1730673155961,4.48059,2470.5,2470.2,0.46898911]
[1730673156161,4.48059,2470.5,2470.3,0.46898911]
[1730673156382,4.48059,2470.5,2470.1,1.05871661]
[1730673156579,4.48059,2470.5,2470.2,0.46897882]
[1730673156790,4.48059,2470.5,2470.3,0.46897882]
[1730673157101,4.48059,2470.5,2470.1,0.7928]
[1730673157300,3.64314,2470.4,2470.2,0.46898651]
[1730673157598,3.64314,2470.4,2470.3,0.46904248]
[1730673158565,3.64314,2470.4,2470.1,0.7928]
[1730673158894,3.64314,2470.4,2470.2,0.46911873]
[1730673159102,3.64314,2470.4,2470.1,0.7928]
[1730673159303,3.64314,2470.4,2470.2,0.46914112]
[1730673159502,3.64314,2470.4,2470.1,0.7928]
[1730673159706,3.64314,2470.4,2470.2,0.46918335]
[1730673159867,3.64314,2470.4,2470.1,0.7928]
[1730673160069,3.64314,2470.4,2470.2,0.46918179]
[1730673160270,3.64314,2470.4,2470.1,0.7928]
[1730673160565,3.64314,2470.4,2470.2,0.46920558]
[1730673160762,3.64314,2470.4,2470.3,0.46920558]
[1730673161402,3.64314,2470.4,2470.3,0.51970442]
[1730673163470,3.64314,2470.4,2470.3,0.51970442]
[1730673165475,1.69896254,2470.4,2470.3,0.51970442]
[1730673165779,3.64313,2470.4,2470.3,0.51970442]
[1730673166365,3.64313,2470.4,2470.3,0.51982475]
[1730673166611,6.17966254,2470.5,2470.3,0.51982475]
[1730673166823,6.17962254,2470.5,2470.4,0.30291971]
[1730673167013,7.14449705,2470.5,2470.4,0.46907589]
[1730673167184,7.14449705,2470.5,2470.4,0.51619545]
[1730673167387,7.14449705,2470.5,2470.4,0.04711956]
[1730673167721,7.14449705,2470.5,2470.1,0.7928]
[1730673168024,6.17962254,2470.5,2470.2,0.04714263]
[1730673169623,3.64319,2470.4,2470.2,0.04714263]
[1730673170503,6.17962254,2470.5,2470.2,0.04714263]
[1730673171429,3.64316,2470.4,2470.2,0.04714263]
[1730673171740,6.17962254,2470.5,2470.2,0.04714263]
[1730673172221,1.69896254,2470.4,2470.2,0.04714263]
[1730673172401,5.36202254,2470.5,2470.2,0.04714263]
[1730673173098,3.64315,2470.4,2470.2,0.04714263]
[1730673173827,5.36202254,2470.5,2470.2,0.04714263]
[1730673175095,9.00509254,2470.5,2470.2,0.04714263]
[1730673175731,5.36202254,2470.5,2470.2,0.04714263]
[1730673175905,3.64319,2470.4,2470.2,0.04714263]
[1730673176431,5.36202254,2470.5,2470.3,0.7348703]
[1730673176633,5.36202254,2470.5,2470.4,0.46911872]
[1730673176634,6.6876445,2470.5,2470.4,0.46911872]
[1730673176933,6.68765691,2470.5,2470.4,0.51623828]
[1730673177230,6.68765691,2470.5,2470.4,0.51625205]
[1730673179935,6.68765691,2470.5,2470.4,0.35016739]
[1730673180119,6.68765691,2470.5,2470.4,0.51624892]
[1730673180635,6.68765691,2470.5,2470.4,0.04711956]
[1730673180936,6.68765691,2470.5,2470.4,0.77219475]
[1730673181138,6.68765691,2470.5,2470.4,0.81930691]
[1730673181834,5.3646797,2470.5,2470.4,0.81932947]
[1730673183739,6.1190797,2470.5,2470.4,0.81932947]
[1730673183909,6.1190797,2470.5,2470.4,0.30305418]
[1730673183910,6.54440076,2470.5,2470.4,0.30305418]
[1730673184103,8.02975114,2470.5,2470.4,0.30305418]
[1730673184305,9.33137214,2470.5,2470.4,0.30305418]
[1730673185008,7.20443138,2470.5,2470.4,0.30305418]
[1730673185208,9.33142174,2470.5,2470.4,0.30305418]
[1730673189856,3.64339,2470.3,2470.1,0.26587894]
[1730673190057,3.64339,2470.3,2470.2,0.46922707]
[1730673190251,3.64339,2470.3,2470.2,0.51636599]
[1730673191246,3.64339,2470.3,2470.2,0.21325932]
[1730673191450,3.64339,2470.3,2470.2,0.51635766]
[1730673195180,3.65339,2470.3,2470.2,0.51639434]
[1730673195332,8.95922887,2470.3,2470.2,0.04713892]
[1730673195526,8.95922887,2470.3,2469.9,0.7964]
[1730673195833,8.95922887,2470.3,2470.0,0.5150182]
[1730673195834,3.64349,2470.2,2470.0,0.5150182]
[1730673196057,3.64349,2470.2,2470.1,0.46938994]
[1730673196228,3.64349,2470.2,2470.1,0.51500666]
[1730673196971,3.64349,2470.2,2470.1,0.51497423]
[1730673197479,3.64349,2470.2,2470.1,0.51488872]
[1730673197632,3.64349,2470.2,2470.1,0.04561672]
[1730673198761,3.64349,2470.2,2469.9,0.7964]
[1730673198933,3.64349,2470.2,2470.0,0.30303915]
[1730673199129,3.64349,2470.2,2470.0,0.04562826]
[1730673201463,3.65349,2470.2,2470.0,0.04562826]
[1730673203549,3.64357,2470.1,2470.0,0.04562826]
[1730673204550,3.64357,2470.1,2470.0,0.34868948]
[1730673206883,7.297,2470.2,2470.0,0.34868948]
[1730673207058,3.64357,2470.1,2470.0,0.04562826]
[1730673207261,3.64357,2470.1,2470.0,0.34866166]
[1730673207665,3.64357,2470.1,2470.0,0.51469884]
[1730673208176,3.64357,2470.1,2470.0,0.04562826]
[1730673208543,3.64357,2470.1,2470.0,0.21167847]
[1730673208749,3.64357,2470.1,2470.0,0.51466361]
[1730673208986,3.64357,2470.1,2470.0,0.04562826]
[1730673211076,3.64357,2470.1,2470.0,0.2116896]
[1730673211386,3.64357,2470.1,2470.0,0.21168719]
[1730673211684,3.64357,2470.1,2470.0,0.21168583]
[1730673211894,3.64357,2470.1,2470.0,0.04562826]
[1730673214078,3.64357,2470.1,2470.0,0.21167535]
[1730673214450,3.64357,2470.1,2470.0,0.21166701]
[1730673214654,3.64357,2470.1,2470.0,0.04562826]
[1730673224285,3.64357,2470.1,2470.0,0.51474246]
[1730673224491,3.64357,2470.1,2470.0,0.04562826]
[1730673225881,3.64357,2470.1,2470.0,0.21168439]
[1730673226304,3.64357,2470.1,2470.0,0.5147187]
[1730673226512,3.64357,2470.1,2470.0,0.21168439]
[1730673226665,3.64357,2470.1,2470.0,0.51472696]
[1730673226868,3.64357,2470.1,2470.0,0.21168439]
[1730673227105,3.64357,2470.1,2470.0,0.04562826]
[1730673227509,3.64357,2470.1,2470.0,0.21167374]
[1730673228372,3.64357,2470.1,2470.0,0.51473623]
[1730673232918,3.64357,2470.1,2470.0,0.34869075]
[1730673233078,3.64357,2470.1,2470.0,0.51487945]
[1730673233282,3.64357,2470.1,2470.0,0.04562826]
[1730673233478,3.64357,2470.1,2469.7,0.7973]
[1730673233724,3.64375,2470.0,2469.8,0.46927948]
[1730673234009,3.64375,2470.0,2469.9,0.46927948]
[1730673235711,7.28722,2470.1,2469.9,0.46927948]
[1730673235906,7.28722,2470.1,2470.0,0.46927948]
[1730673236308,3.64357,2470.1,2470.0,0.04431592]
[1730673236470,3.64357,2470.1,2469.7,0.7973]
[1730673236471,3.64382,2470.0,2469.7,0.7973]
[1730673236875,3.64382,2470.0,2469.8,0.73527387]
[1730673237116,3.64382,2470.0,2469.9,0.46938605]
[1730673240182,3.64382,2470.0,2469.9,0.30323092]
[1730673240409,3.64382,2470.0,2469.9,0.46959819]
[1730673241307,3.64382,2470.0,2469.9,0.73565872]
[1730673242029,3.64382,2470.0,2469.9,0.46959819]
[1730673242230,3.64382,2470.0,2469.9,0.73567627]
[1730673242727,3.64382,2470.0,2469.7,0.7973]
[1730673242909,3.64382,2470.0,2469.7,1.55889834]
[1730673243117,3.64382,2470.0,2469.8,0.7358059]
[1730673243314,3.64382,2470.0,2469.9,0.46973093]
[1730673245593,3.64382,2470.0,2469.9,0.46965171]
[1730673246299,3.64382,2470.0,2469.9,0.46949928]
[1730673246831,3.64382,2470.0,2469.9,0.73543732]
[1730673247328,3.64382,2470.0,2469.9,0.46949928]
[1730673247905,3.64382,2470.0,2469.9,0.73544091]
[1730673248108,3.64382,2470.0,2469.9,0.46949928]
[1730673248291,3.64382,2470.0,2469.9,0.73544091]
[1730673248497,3.64382,2470.0,2469.9,0.46949928]
[1730673248796,3.64382,2470.0,2469.9,0.73547375]
[1730673249118,3.64382,2470.0,2469.9,0.46949928]
[1730673249313,3.64357,2470.1,2469.9,0.73547668]
[1730673249634,3.64357,2470.1,2470.0,0.46949928]
[1730673249834,3.64357,2470.1,2470.0,0.16625387]
[1730673250129,3.64357,2470.1,2470.0,0.46965914]
[1730673251501,3.64357,2470.1,2470.0,0.51400457]
[1730673253400,3.64357,2470.1,2470.0,0.04434543]
[1730673253734,3.64357,2470.1,2470.0,0.46972576]
[1730673253951,3.64357,2470.1,2470.0,0.51407196]
[1730673260909,3.64357,2470.1,2470.0,0.51402784]
[1730673262448,3.64357,2470.1,2470.0,0.21060431]
[1730673262654,3.64357,2470.1,2470.0,0.51403004]
[1730673263327,5.34323719,2470.1,2470.0,0.51403004]
[1730673263708,3.64357,2470.1,2470.0,0.51403004]
[1730673264353,3.64357,2470.1,2470.0,0.21060431]
[1730673264658,3.64357,2470.1,2470.0,0.04434543]
[1730673264845,3.64357,2470.1,2469.7,1.85109544]
[1730673265051,3.64357,2470.1,2470.0,0.0443233]
[1730673265253,3.64357,2470.1,2469.7,1.85109544]
[1730673265435,3.64357,2470.1,2470.0,0.0443233]
[1730673265626,3.64357,2470.1,2469.7,1.85109544]
[1730673265831,3.64357,2470.1,2469.8,0.70252828]
[1730673266030,3.64357,2470.1,2469.8,0.74687466]
[1730673266216,3.64357,2470.1,2469.8,0.04434638]
[1730673266629,3.64357,2470.1,2469.9,0.34775832]
[1730673266951,3.64357,2470.1,2469.9,0.34777486]
[1730673267548,3.64372,2470.0,2469.9,0.34777486]
[1730673270121,3.64372,2470.0,2469.9,1.08361347]
[1730673271745,3.64372,2470.0,2469.9,0.78014541]
[1730673271949,3.64372,2470.0,2469.9,0.65123658]
[1730673272144,3.64372,2470.0,2469.9,1.08359748]
[1730673275674,3.64372,2470.0,2469.9,1.08359599]
[1730673277465,3.64372,2470.0,2469.9,0.65123509]
[1730673277754,3.64372,2470.0,2469.9,1.08358266]
[1730673278525,3.64372,2470.0,2469.9,0.78014264]
[1730673279243,3.64372,2470.0,2469.9,0.78016364]
[1730673282788,3.64372,2470.0,2469.9,0.78021283]
[1730673283990,3.64372,2470.0,2469.9,0.34785426]
[1730673284198,3.64372,2470.0,2469.9,0.78023332]
[1730673286603,3.64372,2470.0,2469.9,0.4767012]
[1730673286890,3.64372,2470.0,2469.9,0.78022869]
[1730673293870,3.64372,2470.0,2469.9,0.78017087]
[1730673295067,5.34338719,2470.0,2469.9,0.51408943]
[1730673295269,5.34338719,2470.0,2469.9,0.51410152]
[1730673296660,3.64372,2470.0,2469.9,0.51410152]
[1730673297358,3.64372,2470.0,2469.9,0.04433484]
[1730673297589,3.64372,2470.0,2469.9,0.51409281]
[1730673300566,3.64372,2470.0,2469.9,0.04433484]
[1730673300879,3.64372,2470.0,2469.7,0.7973]
[1730673301083,3.64372,2470.0,2469.9,0.04430906]
[1730673301406,3.64372,2470.0,2469.9,0.5140776]
[1730673301904,3.64372,2470.0,2469.9,0.04430906]
[1730673302102,3.64372,2470.0,2469.7,0.7973]
[1730673302399,3.64372,2470.0,2469.9,0.04283856]
[1730673302587,3.64372,2470.0,2469.8,0.0428501]
[1730673302792,3.64372,2470.0,2469.7,0.7973]
[1730673302793,3.64372,2470.0,2469.9,0.04283856]
[1730673303104,3.64372,2470.0,2469.9,0.46981687]
[1730673303279,3.64372,2470.0,2469.9,0.51265543]
[1730673303679,3.64372,2470.0,2469.9,0.20915797]
[1730673303910,3.64372,2470.0,2469.9,0.51266141]
[1730673305801,2.46436719,2470.1,2469.9,0.51266141]
[1730673306105,2.46436719,2470.1,2470.0,0.46982285]
[1730673306106,0.7647,2470.1,2470.0,0.46982285]
[1730673306317,4.40827,2470.1,2470.0,0.51264617]
[1730673307309,4.40827,2470.1,2470.0,0.51280533]
[1730673309587,0.7647,2470.1,2470.0,0.51280533]
[1730673311891,4.40827,2470.1,2470.0,0.51280533]
[1730673312723,3.65357,2470.1,2470.0,0.51280533]
[1730673312926,3.65357,2470.1,2470.0,0.51282554]
[1730673314515,1.69966719,2470.2,2470.0,0.51283963]
[1730673314716,1.69966719,2470.3,2470.1,0.47001631]
[1730673314889,1.70966719,2470.3,2470.2,0.2077234]
[1730673315104,1.70966719,2470.3,2470.2,0.20772068]
[1730673315423,1.70966719,2470.3,2470.2,0.04133857]
[1730673315796,1.70966719,2470.3,2470.0,0.26622499]
[1730673316007,1.70966719,2470.3,2470.2,0.04133857]
[1730673316215,1.70966719,2470.3,2470.1,0.80855011]
[1730673316412,1.70966719,2470.3,2470.2,0.04133857]
[1730673316793,1.70966719,2470.3,2470.2,0.20770448]
[1730673317009,1.70966719,2470.3,2470.2,0.5112411]
[1730673317205,1.70966719,2470.3,2470.2,0.20770448]
[1730673317610,1.70966719,2470.3,2470.2,0.04133857]
[1730673318144,1.70966719,2470.3,2470.2,0.51106502]
[1730673318352,8.02745587,2470.3,2470.2,0.04133857]
[1730673318509,6.54210549,2470.3,2470.2,0.04133857]
[1730673319216,5.35294719,2470.3,2470.2,0.04133857]
[1730673319536,5.35294719,2470.3,2470.2,0.51097819]
[1730673319736,5.35294719,2470.3,2470.2,0.20759445]
[1730673320453,5.35294719,2470.3,2470.2,0.04133857]
[1730673321042,3.65328,2470.3,2470.2,0.51088658]
[1730673321351,5.35294719,2470.3,2470.2,0.04133857]
[1730673322555,3.65328,2470.3,2470.2,0.04133857]
[1730673323131,3.65328,2470.3,2470.2,0.5108638]
[1730673323534,3.65328,2470.3,2470.2,0.04133857]
[1730673324458,5.35294719,2470.3,2469.9,0.8092]
[1730673324757,3.65328,2470.3,2470.0,0.4695392]
[1730673324916,3.65328,2470.3,2470.1,0.51082301]
[1730673325113,3.64342,2470.2,2470.1,0.04128381]
[1730673325361,3.64342,2470.2,2470.1,0.46955274]
[1730673325664,3.64342,2470.2,2470.1,0.51083655]
[1730673326219,0.01,2470.3,2470.1,0.51083655]
[1730673326558,3.65329,2470.3,2470.1,0.04128381]
[1730673326743,3.65329,2470.3,2469.9,1.70375431]
[1730673326920,3.65329,2470.3,2470.0,0.51075984]
[1730673327121,3.64342,2470.2,2470.1,0.46946449]
[1730673327353,3.65329,2470.3,2470.1,0.5107483]
[1730673327538,3.65329,2470.3,2470.2,0.16619133]
[1730673327713,3.65329,2470.3,2470.2,0.04127227]
[1730673328267,3.65329,2470.3,2469.9,0.8092]
[1730673328556,3.65329,2470.3,2470.0,0.56917533]
[1730673328759,3.65329,2470.3,2470.1,0.04128381]
[1730673328921,3.65329,2470.3,2469.9,0.8092]
[1730673329119,3.65329,2470.3,2470.0,0.04129535]
[1730673330228,3.65329,2470.3,2470.1,0.46946595]
[1730673330430,3.65329,2470.3,2470.0,0.04129535]
[1730673330634,3.65329,2470.3,2470.2,0.04127227]
[1730673330963,3.64342,2470.2,2470.0,0.26595504]
[1730673331136,3.65329,2470.3,2470.1,0.46947078]
[1730673331324,3.65329,2470.3,2470.0,0.26595504]
[1730673331519,3.65329,2470.3,2469.9,0.8092]
[1730673331520,3.65329,2470.3,2470.1,0.46945469]
[1730673331763,3.65329,2470.3,2469.9,1.07515504]
[1730673331922,3.65329,2470.3,2470.0,0.46946943]
[1730673332126,3.65329,2470.3,2470.1,0.46946943]
[1730673332466,3.65329,2470.3,2469.9,0.8092]
[1730673332624,3.65329,2470.3,2470.0,0.46938729]
[1730673332962,3.65329,2470.3,2470.1,0.46938729]
[1730673333260,3.65329,2470.3,2469.9,1.07510723]
[1730673333418,3.65329,2470.3,2470.0,0.4693187]
[1730673333763,3.65329,2470.3,2470.1,0.4693187]
[1730673333929,3.65329,2470.3,2469.9,1.07510723]
[1730673334136,3.65329,2470.3,2470.0,0.46932059]
[1730673334339,3.65329,2470.3,2470.1,0.46932059]
[1730673334551,3.65329,2470.3,2469.9,1.07510723]
[1730673334753,3.65329,2470.3,2470.0,0.46930968]
[1730673334950,3.65329,2470.3,2470.1,0.46930968]
[1730673335154,3.64342,2470.2,2470.0,0.26590723]
[1730673335356,3.64342,2470.2,2470.1,0.46929489]
[1730673337666,3.6533,2470.3,2470.1,0.46929489]
[1730673337964,3.6533,2470.3,2469.9,1.07510723]
[1730673338169,3.6533,2470.3,2470.0,0.46919327]
[1730673338329,3.6533,2470.3,2470.1,0.46919327]
[1730673338649,3.6533,2470.3,2469.9,1.99626427]
[1730673338851,3.6533,2470.3,2470.0,0.46920776]
[1730673339167,3.6533,2470.3,2470.1,0.46920776]
[1730673339352,3.6533,2470.3,2469.9,1.99626427]
[1730673339555,3.6533,2470.3,2470.0,0.4692018]
[1730673339760,3.6533,2470.3,2470.1,0.4692018]
[1730673339968,3.6533,2470.3,2469.9,1.99626427]
[1730673340151,3.6533,2470.3,2470.0,0.46920583]
[1730673340349,3.6533,2470.3,2470.1,0.46920583]
[1730673340566,3.64342,2470.2,2469.9,1.99626427]
[1730673340861,3.64342,2470.2,2470.0,1.03322594]
[1730673341173,3.64342,2470.2,2470.1,0.46919851]
[1730673341387,3.64342,2470.2,2470.1,0.42056867]
[1730673341668,3.64342,2470.2,2470.1,0.58667398]
[1730673343868,3.6533,2470.3,2470.1,0.58667398]
[1730673344069,3.6533,2470.3,2470.2,0.16605151]
[1730673344274,0.01,2470.3,2470.1,0.11738892]
[1730673344432,3.65328,2470.3,2470.2,0.58669307]
[1730673345333,3.65328,2470.3,2470.2,0.58670617]
[1730673349484,3.64328,2470.3,2470.2,0.58669519]
[1730673350357,3.65328,2470.3,2470.2,0.58669519]
[1730673352859,3.65328,2470.3,2470.2,0.1173964]
[1730673353167,3.65328,2470.3,2470.2,0.4693784]
[1730673353481,3.65328,2470.3,2470.2,0.5867748]
[1730673354049,3.64328,2470.3,2470.2,0.5867748]
[1730673354250,3.65328,2470.3,2470.2,0.5867748]
[1730673358462,3.64328,2470.3,2470.2,0.5867748]
[1730673358665,3.65328,2470.3,2470.2,0.5867748]
[1730673359860,3.64328,2470.3,2470.2,0.5867748]
[1730673360499,3.64328,2470.3,2470.2,0.58673164]
[1730673361092,3.65328,2470.3,2470.2,0.58673164]
[1730673362600,7.27663471,2470.3,2470.2,0.58673164]
[1730673363309,7.27663471,2470.3,2470.2,0.28331311]
[1730673363693,7.27663471,2470.3,2470.2,0.58677552]
[1730673364401,7.27663471,2470.3,2470.2,0.28331311]
[1730673365269,7.27663471,2470.3,2470.2,0.58677083]
[1730673365888,7.27663471,2470.3,2470.2,0.28331311]
[1730673366371,7.27663471,2470.3,2470.2,0.58676989]
[1730673366571,7.27663471,2470.3,2470.2,0.28331311]
[1730673366798,7.27663471,2470.3,2470.2,0.58676542]
[1730673367304,7.27663471,2470.3,2470.2,0.28331311]
[1730673367977,7.27663471,2470.3,2470.2,0.58676108]
[1730673368404,7.27663471,2470.3,2470.2,0.28334185]
[1730673368776,7.27663471,2470.3,2470.2,0.58682424]
[1730673369189,7.27663471,2470.3,2470.2,0.28334185]
[1730673369912,7.27663471,2470.3,2470.2,0.58689499]
[1730673370220,7.27663471,2470.3,2470.2,0.58694222]
[1730673370511,7.27663471,2470.3,2470.2,0.28338912]
[1730673370716,7.27663471,2470.3,2470.2,0.58693034]
[1730673370881,7.27663471,2470.3,2470.2,0.1173964]
[1730673371081,5.57696752,2470.3,2470.2,0.1173964]
[1730673371281,3.64361,2470.1,2469.9,0.8035]
[1730673371494,3.64361,2470.1,2470.0,0.46952414]
[1730673373176,3.64361,2470.1,2470.0,0.73511474]
[1730673373623,3.64361,2470.1,2470.0,0.46952414]
[1730673373790,3.64361,2470.1,2470.0,0.73510754]
[1730673374127,3.64361,2470.1,2470.0,0.4695053]
[1730673374275,3.64361,2470.1,2470.0,0.73510152]
[1730673375278,3.64361,2470.1,2470.0,0.46950781]
[1730673375483,3.64361,2470.1,2470.0,0.73504627]
[1730673375886,3.64361,2470.1,2470.0,0.73504479]
[1730673376188,3.64361,2470.1,2470.0,0.73493977]
[1730673376893,3.64361,2470.1,2470.0,0.46940497]
[1730673379327,3.64361,2470.1,2470.0,0.73496234]
[1730673379630,3.64361,2470.1,2470.0,0.46940497]
[1730673382512,3.64361,2470.1,2470.0,0.73490679]
[1730673382712,3.64361,2470.1,2470.0,0.46940497]
[1730673382915,3.64361,2470.1,2470.0,0.73489453]
[1730673384628,3.64361,2470.1,2470.0,0.73486145]
[1730673386327,3.64361,2470.1,2470.0,0.85232763]
[1730673390712,3.64361,2470.1,2470.0,0.2833793]
[1730673390938,3.64361,2470.1,2470.0,0.58678524]
[1730673391138,3.64361,2470.1,2470.0,0.85225669]
[1730673391317,3.64361,2470.1,2470.0,0.58678524]
[1730673392040,3.64361,2470.1,2470.0,0.8522306]
[1730673392553,3.64361,2470.1,2470.0,0.58677973]
[1730673392728,3.64361,2470.1,2470.0,0.85222413]
[1730673393619,3.64361,2470.1,2470.0,0.85222265]
[1730673393962,7.29694,2470.2,2470.0,0.85222265]
[1730673394252,7.29694,2470.2,2470.1,0.46931355]
[1730673394457,7.29694,2470.2,2470.1,0.58676511]
[1730673394819,3.65344,2470.2,2470.1,0.58676511]
[1730673395315,3.65344,2470.2,2470.1,0.11745156]
[1730673395551,3.65344,2470.2,2470.1,0.58673201]
[1730673395730,3.65344,2470.2,2470.1,0.46928045]
[1730673395917,3.65344,2470.2,2470.1,0.58673201]
[1730673402357,5.35492919,2470.2,2470.1,0.28332997]
[1730673402656,3.65344,2470.2,2470.1,0.58679881]
[1730673403222,3.65344,2470.2,2470.1,0.28332997]
[1730673403576,3.65344,2470.2,2470.1,0.58680107]
[1730673403720,5.35492919,2470.2,2470.1,0.58680107]
[1730673403920,3.65344,2470.2,2470.1,0.58680107]
[1730673404364,5.35492919,2470.2,2470.1,0.58680107]